[Event "61st Mongolian-ch Open 2023"]
[Site "Khovd"]
[Date "2023.05.22"]
[Round "1.6"]
[White "Ulziikhishig Khishigbat"]
[Black "Munkhzul, Turmunkh"]
[Result "0-1"]
[ECO "E32"]
[WhiteElo "1601"]
[BlackElo "2318"]
[Annotator "TA"]
[PlyCount "129"]
[EventDate "2023.05.22"]
[EventType "tourn"]
[EventCountry "MGL"]
[SourceTitle "playchess.com"]
[Source "ChessBase"]
[SourceQuality "1"]
[TimeControl "40/5400+30:1800+30"]

{[%evp 13,129,0,0,0,0,0,0,0,0,0,8,0,0,7,27,-16,-8,-16,-15,-19,-18,-21,0,-82,-86,-74,-85,-194,-175,-195,-112,-109,-103,-113,-96,-94,-52,-172,-172,-183,-173,-179,-185,-192,-180,-172,0,-84,-75,-81,-83,-96,-96,-96,-96,-93,-89,-128,-128,-128,-125,-137,-119,-112,-112,-125,-123,-123,-123,-123,-123,-137,-108,-123,-123,-123,-123,-189,-184,-188,-188,-193,-178,-195,-194,-194,-184,-178,0,-187,-181,-159,-163,-310,-299,-320,-318,-308,-316,-315,-308,-561,-547,-547,-514,-606,-596,-1141,-1000,-5963,-5385,-5918,-5886,-5025,-5025,-29982,-29983,-29981]} 1. d4 {[%emt 0:00:03]} Nf6 {[%emt 0:01:48]} 2. c4 {[%emt 0:00:10]} e6 {[%emt 0:02:21]} 3. Nc3 {[%emt 0:00:28]} Bb4 {[%emt 0:01:19]} 4. Qc2 {[%emt 0:00:09]} O-O {[%emt 0:02:06]} 5. e4 {[%emt 0:00:58]} d5 {[%emt 0:01:21]} 6. e5 {[%emt 0:01:30]} Ne4 {[%emt 0:01:25]} 7. Bd3 {[%emt 0:00:25]} c5 $1 {[%emt 0:02:10]} 8. Nf3 {[%emt 0:01:06] aiming for 0-0. E32: Nimzo-Indian: Classical (4 Qc2): 4...0-0.} cxd4 {[%emt 0:02:35]} 9. Nxd4 {[%emt 0:00:29]} Nd7 {[%emt 0:00:34]} 10. Bf4 {[%emt 0:01:03] The position is equal.} Qh4 {[%emt 0:07:44]} 11. g3 {[%emt 0:02:08]} Qh5 {[%emt 0:04:17]} 12. O-O {[%emt 0:03:14]} g5 {[%emt 0:01:33]} 13. cxd5 {[%emt 0:28:39]} gxf4 {[%emt 0:04:06]} (13... Bxc3 {simplifies} 14. bxc3 exd5 15. Bxe4 dxe4 16. e6 gxf4 17. exd7 Bxd7 18. Qxe4 fxg3 19. fxg3 b6) 14. Nxe4 {[%emt 0:10:29]} (14. dxe6 $5 Nxe5 15. exf7+ (15. Nxe4 fxe6 16. Qb3 a5 $11) 15... Rxf7 16. Nxe4 $11) 14... exd5 {[%emt 0:02:37]} (14... Qxe5 15. dxe6 Qxd4 16. exd7 Bxd7 17. Rad1 $16) 15. Nf6+ {[%emt 0:01:43]} Nxf6 {[%emt 0:00:10]} 16. exf6 {[%emt 0:00:02]} Bh3 {[%emt 0:04:18]} 17. Rfd1 {[%emt 0:04:36]} Rac8 {[%emt 0:06:37]} 18. Qb3 {[%emt 0:07:48] [#]} (18. Qe2 $11 {keeps the balance.} Qxe2 19. Bxe2) 18... fxg3 $1 $17 {[%emt 0:04:43]} 19. hxg3 {[%emt 0:05:02]} (19. Qxb4 $2 gxf2+ 20. Kxf2 Qh4+ 21. Kg1 Qg5+ 22. Kf2 Qg2+ 23. Ke3 Rfe8+ $19) 19... Bc5 $40 {[%emt 0:00:52][%mdl 128] Black attacks with force.} 20. Ne2 {[%emt 0:02:10]} (20. Be2 $17 Qe5 21. g4 Bxd4 22. Qxh3 Qxf6 23. Qf3) 20... Kh8 $1 $19 {[%emt 0:04:06] ...Qf3 is the strong threat.} (20... Bg4 21. Nf4 Bxd1 22. Rxd1 $17) 21. Bb5 {[%emt 0:04:17] [#]} Bg4 $146 {[%emt 0:07:29] This pair of bishops is nice.} (21... Qf5 $1 $19 {[%cal Rf5f2]} 22. Nf4 Rg8) ({Predecessor:} 21... Qf5 22. Nf4 Rg8 23. Qf3 Rxg3+ 24. Qxg3 Rg8 25. Qxg8+ Kxg8 26. Nxh3 Qxh3 27. Rd3 Qh4 {½-½ El Gindy,E (2486)-Golizadeh,A (2490) Olympiad-41 Tromsoe 2014 (10.4)}) 22. Nf4 $17 {[%emt 0:03:57]} (22. Rxd5 $2 Bxf2+ 23. Kxf2 Qh2+ 24. Kf1 (24. Ke3 $2 Bxe2 $19) 24... a6 $19) 22... Bxd1 {[%emt 0:16:14]} 23. Rxd1 {[%emt 0:00:01]} Qh6 {[%emt 0:00:46]} 24. Rxd5 {[%emt 0:08:07]} Rg8 {[%emt 0:01:54]} 25. Nh5 {[%emt 0:03:24]} (25. Qf3 $15) 25... Bb6 {[%emt 0:04:31] Hoping for ...Qc1+.} 26. Be2 {[%emt 0:00:33]} Qc1+ {[%emt 0:01:03]} 27. Kg2 {[%emt 0:01:19]} Qe1 {[%emt 0:00:31]} 28. Qf3 {[%emt 0:00:24]} Rc1 {[%emt 0:02:15][%csl Gc1][%cal Re1h1]} 29. Bd1 {[%emt 0:05:00]} Rc4 $2 {[%emt 0:02:45]} ({Better is} 29... Bxf2 $1 $19 {White must now prevent ...Qg1+.} 30. Qxf2 Rxd1 31. Qxe1 Rxe1) 30. Nf4 {[%emt 0:02:37] [#]} (30. Bb3 $1 $11 Rc1 31. Bd1) 30... Qe4 $1 {[%emt 0:01:55] The board is on fire.} 31. Qxe4 {[%emt 0:00:02]} Rxe4 {[%emt 0:00:05]} 32. Kf3 {[%emt 0:00:37]} Rd4 {[%emt 0:00:18]} 33. Bb3 {[%emt 0:01:40]} Rxd5 {[%emt 0:02:02]} 34. Bxd5 {[%emt 0:00:19][%mdl 4096] Endgame KRB-KBN} Bd4 {[%emt 0:00:51][%csl LRb2,LRf6]} 35. Bxf7 {[%emt 0:00:53]} Rf8 {[%emt 0:00:43]} 36. Bd5 {[%emt 0:00:08]} Rxf6 {[%emt 0:00:08]} ({Stronger than} 36... Bxb2 37. f7 $11) 37. Bxb7 {[%emt 0:00:29]} Rb6 {[%emt 0:00:24]} 38. Bd5 {[%emt 0:00:24]} Rxb2 {[%emt 0:00:09]} 39. Nd3 {[%emt 0:02:32]} Rd2 {[%emt 0:00:14]} 40. Bc4 {[%emt 0:00:06]} Kg7 {[%emt 0:00:53] Black is much more active.} 41. a4 {[%emt 0:31:07]} h5 {[%emt 0:34:24]} 42. Nf4 {[%emt 0:00:42]} Kh6 {[%emt 0:00:17]} (42... Rxf2+ $2 {loses.} 43. Ke4 Bb6 44. Nxh5+ Kh6 45. Nf4) (42... Bxf2 $2 {perishes.} 43. Nxh5+ Kg6 44. Nf4+ Kf6 45. Bb5) 43. Nh3 {[%emt 0:00:17]} Bb6 {[%emt 0:01:08]} 44. Bb5 {[%emt 0:00:20]} Ra2 {[%emt 0:01:30]} 45. Be8 {[%emt 0:00:17] [#]} (45. Kg2 $17) 45... a6 $1 $19 {[%emt 0:00:19]} 46. Bd7 {[%emt 0:00:14]} Kg7 {[%emt 0:00:37]} 47. Be8 {[%emt 0:01:01]} Kf8 {[%emt 0:00:19]} 48. Bd7 {[%emt 0:00:38]} Ke7 {[%emt 0:00:10]} 49. Bc6 {[%emt 0:00:07]} Kd8 {[%emt 0:00:07]} 50. Kg2 {[%emt 0:00:23]} Ke7 {[%emt 0:00:36]} 51. Kf3 $1 {[%emt 0:00:15]} Ba7 {[%emt 0:03:31]} 52. Kg2 {[%emt 0:00:15]} Rb2 {[%emt 0:00:16]} 53. Kf3 {[%emt 0:00:57]} (53. Be4 $142) 53... Rb4 {[%emt 0:01:10]} 54. Nf4 {[%emt 0:01:20] Nd5+ would be deadly.} Rc4 {[%emt 0:00:09]} 55. Bd5 {[%emt 0:00:25]} Rxa4 {[%emt 0:00:19]} 56. Nxh5 {[%emt 0:00:19]} Rd4 {[%emt 0:00:08]} 57. Bg8 {[%emt 0:00:35]} (57. Nf4) 57... Rd2 {[%emt 0:00:10][%cal Oa6a5]} 58. Nf4 {[%emt 0:00:12]} a5 {[%emt 0:00:38][%cal Ba6a5,Ba5a4,Ba4a3][%mdl 32]} 59. Ne2 {[%emt 0:00:32]} a4 {[%emt 0:00:12] Threatens to win with ...Rc2.} 60. g4 {[%emt 0:00:38]} Rc2 {[%emt 0:00:15]} 61. Ng3 {[%emt 0:00:50]} Rxf2+ {[%emt 0:00:41]} 62. Ke4 {[%emt 0:00:17]} a3 {[%emt 0:00:09]} 63. Nf5+ {[%emt 0:00:11]} Kf6 {[%emt 0:00:21]} 64. Nd4 {[%emt 0:00:31]} Bxd4 {[%emt 0:00:06]} 65. Kxd4 {[%emt 0:01:36] Weighted Error Value: White=0.48/Black=0.11 (very precise)} 0-1

[Event "61st Mongolian-ch Open 2023"]
[Site "Khovd"]
[Date "2023.05.22"]
[Round "2.1"]
[White "Chinguun, Sumiya"]
[Black "Ulziikhishig Khishigbat"]
[Result "1-0"]
[ECO "B30"]
[WhiteElo "2298"]
[BlackElo "1601"]
[Annotator "TA"]
[PlyCount "51"]
[EventDate "2023.05.22"]
[EventType "tourn"]
[EventCountry "MGL"]
[SourceTitle "playchess.com"]
[Source "ChessBase"]
[SourceQuality "1"]
[TimeControl "40/5400+30:1800+30"]

{[%evp 12,51,13,11,24,0,7,0,0,-26,-18,-19,-32,-53,25,-4,0,0,-4,-14,8,17,30,-43,-37,-33,-35,-58,-54,-56,-52,-57,38,34,164,156,546,493,29993,29994,29994,29993]} 1. e4 {[%emt 0:00:22]} c5 {[%emt 0:00:57]} 2. Nc3 {[%emt 0:00:10]} Nc6 {[%emt 0:00:54]} 3. Bb5 {[%emt 0:00:13]} Nd4 {[%emt 0:01:03]} 4. Nf3 {[%emt 0:00:10]} e6 {[%emt 0:02:13]} 5. O-O {[%emt 0:01:23]} a6 {[%emt 0:01:58]} 6. Bd3 {[%emt 0:00:49]} Nxf3+ {[%emt 0:00:54]} 7. Qxf3 {[%emt 0:00:25]} Bd6 {[%emt 0:00:31] B30: Sicilian: 2...Nc6 3 Bb5, lines without ...g6.} 8. a4 {[%emt 0:10:43]} Qc7 {[%emt 0:02:40]} (8... Qh4 9. g3 Qd8 10. Qe2 $14) 9. h3 {[%emt 0:00:25] [#]} Be5 $146 {[%emt 0:00:22] The position is equal.} ({Predecessor:} 9... Ne7 10. Re1 Bh2+ 11. Kh1 Be5 12. b3 O-O 13. Bb2 Nc6 14. Qh5 g6 15. Qh4 Qd8 16. Qxd8 Rxd8 {0-1 Sokolin,L (2508)-Grachev,B (2626) Wch Blitz St Petersburg 2018 (11)}) 10. Bc4 {[%emt 0:04:08]} Ne7 {[%emt 0:01:03]} 11. d3 {[%emt 0:00:49]} O-O {[%emt 0:01:40]} 12. Qh5 {[%emt 0:04:30]} Rd8 {[%emt 0:04:57]} (12... b6 $15) 13. f4 {[%emt 0:01:46]} Bxc3 {[%emt 0:01:56]} 14. bxc3 {[%emt 0:02:47]} d5 {[%emt 0:00:09]} 15. Ba2 {[%emt 0:00:32]} b5 {[%emt 0:04:55]} (15... c4 $5 {[%cal Rc4d3]}) 16. f5 {[%emt 0:04:13] And now Bf4 would win.} exf5 {[%emt 0:05:12]} (16... c4 {is more complex.} 17. f6 Ng6 18. fxg7 dxe4 19. dxe4 Bb7) 17. Bxd5 {[%emt 0:08:07]} (17. exf5 $11 c4 18. f6 Qb6+ 19. Kh1 gxf6 20. Ba3) 17... Nxd5 $15 {[%emt 0:09:20]} 18. exd5 {[%emt 0:00:16]} c4 {[%emt 0:02:00] White must now prevent ...cxd3.} 19. axb5 {[%emt 0:05:49]} cxd3 {[%emt 0:04:40][%mdl 64] Discovered Attack} 20. cxd3 {[%emt 0:01:57] Strongly threatening c4.} Qxc3 {[%emt 0:01:22]} 21. Ra4 {[%emt 0:05:51]} g6 {[%emt 0:07:02]} ({Better is} 21... h6 $15) 22. Qh4 $1 $14 {[%emt 0:00:49]} Rxd5 {[%emt 0:02:17] [#]} ({Black should try} 22... Bb7 $1 $14) 23. Rc4 $1 $40 {[%emt 0:01:53][%mdl 128] White wants a kill.} Qxd3 {[%emt 0:07:15]} (23... Qg7 $16 {is more resistant.}) 24. Bb2 {[%emt 0:01:05][%cal Oh4h7] White threatens Qxh7+! and mate.} Rxb5 {[%emt 0:06:42] [#]} (24... axb5 {gets mated.} 25. Qxh7+ Kf8 26. Re1) (24... Qe3+ $18 25. Kh1 Bb7 26. bxa6 (26. Qf6 Re5 $16) 26... Rd7 27. axb7 Rxb7) 25. Qxh7+ $3 {[%emt 0:00:34][%mdl 576] Decoy, Back Rank, Clearance} Kf8 {[%emt 0:00:22]} 26. Bf6 {[%emt 0:02:33] Ingenious play by Chinguun!   Weighted Error Value: White=0.14 (very precise) /Black=0.68} 1-0

[Event "61st Mongolian-ch Open 2023"]
[Site "Khovd"]
[Date "2023.05.22"]
[Round "2.2"]
[White "Erdene, Ganzorig"]
[Black "Bulgankhan Ganzorig"]
[Result "0-1"]
[ECO "A47"]
[WhiteElo "2278"]
[BlackElo "2017"]
[Annotator "TA"]
[PlyCount "98"]
[EventDate "2023.05.22"]
[EventType "tourn"]
[EventCountry "MGL"]
[SourceTitle "playchess.com"]
[Source "ChessBase"]
[SourceQuality "1"]
[TimeControl "40/5400+30:1800+30"]

{[%evp 9,98,-24,4,5,4,8,0,-18,-8,-14,0,-14,-10,-22,-19,-14,-14,-26,-21,-22,-21,-40,-46,-54,-27,-62,-60,-76,-69,-87,-82,-195,-218,-202,-166,-231,-236,-232,-230,-431,-436,-427,-398,-462,-458,-574,-558,-506,-329,-610,-581,-732,-719,-713,-701,-768,-766,-739,-723,-800,-767,-973,-969,-946,-941,-870,-435,-1083,-550,-628,-612,-965,-659,-693,-638,-950,-447,-733,-622,-822,-719,-664,-635,-820,-823,-818,-802,-1368,-1366,-889,-827]} 1. d4 {[%emt 0:00:10]} Nf6 {[%emt 0:00:06]} 2. Bf4 {[%emt 0:00:07]} b6 {[%emt 0:00:12]} 3. Nc3 {[%emt 0:05:26]} Bb7 {[%emt 0:00:23]} 4. Nf3 {[%emt 0:00:52]} e6 {[%emt 0:01:15]} 5. e3 {[%emt 0:00:50]} Nh5 {[%emt 0:01:13] [#]} 6. Bg5 $146 {[%emt 0:07:02] A47: 1 d4 Nf6 2 Nf3 b6: Torre, London and Colle Systems.} ({Predecessor:} 6. Bg3 Nxg3 7. hxg3 Nc6 8. Bb5 a6 9. Bd3 g6 10. Qd2 Bg7 11. O-O-O Qe7 12. Qe2 e5 13. dxe5 Nxe5 14. Nxe5 Bxe5 {1-0 De Souza,S (1800)-Coutinho,L (1099) Florianopolis op 9th 2023 (5)}) 6... Be7 {[%emt 0:01:36]} 7. Bxe7 {[%emt 0:00:13]} Qxe7 {[%emt 0:00:01]} 8. g3 {[%emt 0:15:58] The position is equal.} O-O {[%emt 0:06:42]} 9. Bg2 {[%emt 0:00:06]} Nf6 {[%emt 0:00:24]} 10. O-O {[%emt 0:00:29]} c5 {[%emt 0:00:03]} 11. Nb5 {[%emt 0:02:40]} d5 {[%emt 0:01:45]} 12. Ne5 {[%emt 0:03:31]} a6 {[%emt 0:02:43]} 13. Nc3 {[%emt 0:01:32]} Nc6 {[%emt 0:00:55]} 14. Nxc6 {[%emt 0:06:43]} Bxc6 {[%emt 0:00:19]} 15. dxc5 {[%emt 0:00:19]} bxc5 {[%emt 0:00:19]} 16. b3 {[%emt 0:00:47]} Rac8 {[%emt 0:01:38]} 17. Ne2 {[%emt 0:06:00]} Rfd8 {[%emt 0:01:09][%cal Od5d4]} 18. c3 {[%emt 0:01:31]} a5 {[%emt 0:05:08] Black is more active. Black keeps a firm grip on the game.} 19. Qc2 {[%emt 0:01:23]} d4 {[%emt 0:00:18]} 20. Rad1 {[%emt 0:10:57]} (20. cxd4 $17 {keeps fighting.} cxd4 21. Qd3 (21. Bxc6 $2 {is the wrong capture.} d3 $19 {[%mdl 64] Deflection, Double Attack})) 20... Bxg2 $19 {[%emt 0:01:39]} 21. Kxg2 {[%emt 0:00:17][%cal Re3d4]} dxe3 {[%emt 0:00:13]} 22. fxe3 {[%emt 0:01:04]} (22. f3 $142) 22... Qb7+ {[%emt 0:00:09]} 23. Kg1 {[%emt 0:00:28]} Ng4 {[%emt 0:02:16]} 24. Rd3 {[%emt 0:10:27]} (24. Rxd8+ {was the only defense.} Rxd8 25. Qc1) 24... Rxd3 {[%emt 0:01:14]} 25. Qxd3 {[%emt 0:01:48]} Ne5 {[%emt 0:00:14]} 26. Qd6 {[%emt 0:02:22]} Nf3+ {[%emt 0:00:31][%mdl 64] Deflection} 27. Kf2 {[%emt 0:00:06]} Nxh2 {[%emt 0:00:57]} 28. Rd1 {[%emt 0:00:24][%cal Od6d8] White wants to mate with Qd8+!} Qf3+ {[%emt 0:03:19]} 29. Ke1 $2 {[%emt 0:00:32]} (29. Kg1 g6 30. Qd3) 29... h6 {[%emt 0:00:29] And now ...Qf1+ would win. Black is clearly winning.} (29... Qxe3 $2 {gets mated.} 30. Qd8+ Rxd8 31. Rxd8#) 30. Qd3 {[%emt 0:06:21]} Qg2 {[%emt 0:06:25][%cal Rh2f3]} 31. Kd2 {[%emt 0:00:38] [#]} c4 $1 {[%emt 0:01:05][%mdl 512]} 32. bxc4 {[%emt 0:01:17]} (32. Qc2 Nf1+) 32... Nf3+ {[%emt 0:00:11]} 33. Kc1 {[%emt 0:04:07]} Ne5 {[%emt 0:00:30][%csl LRc4,LRd3][%mdl 64] Deflection} 34. Qd2 {[%emt 0:05:23]} Nxc4 {[%emt 0:00:22]} 35. Qd3 {[%emt 0:00:03]} Qb7 {[%emt 0:01:00][%csl Gc4][%cal Rb7b2]} 36. Qb1 {[%emt 0:00:05] Prevents Qb2+} Qa7 {[%emt 0:00:17]} 37. Rd4 {[%emt 0:01:23]} Nxe3 {[%emt 0:00:22]} 38. Qb3 {[%emt 0:01:04]} (38. Qd3 $142 Nd5 39. Kd1) 38... Nd5 {[%emt 0:00:23][%cal Od5c3] Strongly threatening ...Nxc3!} 39. Kd2 {[%emt 0:00:48] [#]} Nxc3 $1 {[%emt 0:01:00][%mdl 576] Decoy} 40. Qc2 {[%emt 0:00:00]} (40. Rc4 Rd8+) 40... Qb6 {[%emt 0:00:00] ...Nb1+ is the strong threat.} 41. Ke1 {[%emt 0:05:37]} Qc6 {[%emt 0:03:46]} 42. Kf2 {[%emt 0:00:23]} Nd5 {[%emt 0:00:06]} (42... e5 $142 43. Rd8+ Rxd8 44. Qxc3 Qxc3 {[%mdl 64] Remove Defender} 45. Nxc3 Rd3) 43. Qd2 {[%emt 0:01:39]} (43. Qxc6 $142 Rxc6 44. Rd3) 43... Qc2 {[%emt 0:01:29]} 44. a3 {[%emt 0:03:34]} Qxd2 {[%emt 0:00:31]} 45. Rxd2 {[%emt 0:00:04]} Nc3 {[%emt 0:01:13] White must now prevent ...Ne4+.} 46. Rd4 {[%emt 0:01:00] Wards off Ne4+} Nxe2 {[%emt 0:00:07]} 47. Kxe2 {[%emt 0:00:02]} Rc3 {[%emt 0:00:11][%csl LRa3,LRg3]} 48. Ra4 {[%emt 0:00:07]} Rxg3 {[%emt 0:00:17]} 49. Rxa5 {[%emt 0:00:06]} g5 {[%emt 0:00:04] Weighted Error Value: White=0.98/Black=0.63} 0-1

[Event "61st Mongolian-ch Open 2023"]
[Site "Khovd"]
[Date "2023.05.22"]
[Round "2.3"]
[White "Munkhzul, Turmunkh"]
[Black "Amilal Munkhdalai"]
[Result "0-1"]
[ECO "B32"]
[WhiteElo "2318"]
[BlackElo "2141"]
[Annotator "TA"]
[PlyCount "72"]
[EventDate "2023.05.22"]
[EventType "tourn"]
[EventCountry "MGL"]
[SourceTitle "playchess.com"]
[Source "ChessBase"]
[SourceQuality "1"]
[TimeControl "40/5400+30:1800+30"]

{[%evp 13,72,16,22,6,9,18,8,0,0,-6,36,41,43,27,29,25,70,57,45,39,120,97,119,112,193,189,177,199,198,216,217,140,197,0,0,-262,-262,-262,-261,-250,-241,-360,-347,-400,-395,-904,-431,-441,-446,-438,-434,-520,-520,-516,-505,-606,-599,-985,-606,-594,-469]} 1. e4 {[%emt 0:01:06]} c5 {[%emt 0:00:04]} 2. Nf3 {[%emt 0:01:12]} Nc6 {[%emt 0:00:05]} 3. d4 {[%emt 0:02:21]} cxd4 {[%emt 0:00:10]} 4. Nxd4 {[%emt 0:00:09]} Qc7 {[%emt 0:00:03]} 5. c4 {[%emt 0:02:12]} Nf6 {[%emt 0:00:09]} 6. Nc3 {[%emt 0:01:42]} Nxe4 {[%emt 0:00:23]} 7. Nxe4 {[%emt 0:12:38]} Qe5 {[%emt 0:00:12][%csl LRd4,LRe4]} 8. Nb5 {[%emt 0:04:13][%cal Bd4b5,Bb5c3,Bc3a4,Ba4c3][%mdl 32] Strongly threatening Qd5. B32: Sicilian: Löwenthal and Kalashnikov Variations.} Qxe4+ {[%emt 0:00:09]} 9. Be2 {[%emt 0:02:52] Threatens to win with Nc7+.} Qe5 {[%emt 0:00:13] Against Nc7+} (9... Qxg2 $2 10. Bf3 Qh3 11. Nc7+ Kd8 12. Nxa8 $18) 10. f4 {[%emt 0:02:40] The position is equal.} Qb8 {[%emt 0:00:21]} 11. O-O {[%emt 0:02:42]} a6 {[%emt 0:09:21]} 12. Nc3 {[%emt 0:01:08][%mdl 1024] White has compensation.} e6 {[%emt 0:00:44]} 13. Be3 {[%emt 0:03:04] [#] Against Bc5} Qc7 $146 {[%emt 0:06:22]} ({Predecessor:} 13... Be7 14. Qe1 O-O 15. f5 Qe5 16. Bd3 Nb4 17. Rd1 Bc5 18. Bxc5 Qxc5+ 19. Kh1 Nxd3 20. Rxd3 Qxc4 {1-0 Lercel,M (2123)-Stoma,P (2121) POL-chT U19 30th 1999}) 14. Na4 {[%emt 0:06:32]} d6 {[%emt 0:03:29]} 15. Bb6 {[%emt 0:03:33]} Qe7 {[%emt 0:11:32]} 16. Qd2 {[%emt 0:04:01]} Bd7 {[%emt 0:06:54]} (16... g6 $1 $14) 17. Nc3 $36 {[%emt 0:03:23][%mdl 2048] Keeping Black busy.} g6 {[%emt 0:18:14]} 18. Rad1 {[%emt 0:02:39]} f5 {[%emt 0:01:24] Against Ne4} (18... Bg7 $16) 19. Bf3 {[%emt 0:04:05][%cal Oc3d5] Nd5! would be deadly.} Qf7 {[%emt 0:11:47]} 20. Rfe1 {[%emt 0:07:25]} Be7 {[%emt 0:01:41] [#]} 21. Nd5 $1 {[%emt 0:08:56][%mdl 512] Black must now prevent Nc7+.} exd5 {[%emt 0:01:39]} (21... O-O 22. c5) 22. Bxd5 {[%emt 0:00:26]} Qf6 {[%emt 0:00:07]} (22... Qg7 $16 {was called for.}) 23. c5 $2 {[%emt 0:03:50]} ({White should try} 23. b4 $18) 23... dxc5 $1 $11 {[%emt 0:04:57][%cal Of6d4]} 24. Bxc5 {[%emt 0:01:11][%mdl 8192] [#]} (24. Bxc6 $11 {and White has nothing to worry.} Qxc6 25. Qc3) 24... O-O-O $1 $19 {[%emt 0:00:16]} 25. Rxe7 {[%emt 0:11:27]} Nxe7 {[%emt 0:00:41]} 26. Bd4 {[%emt 0:01:38]} Qd6 {[%emt 0:06:40]} 27. Bxh8 {[%emt 0:04:22]} (27. Bxb7+ $142 Kxb7 28. Bxh8 Qxd2 29. Rxd2) 27... Qxd5 {[%emt 0:03:32]} 28. Qe1 {[%emt 0:01:28]} Qe4 {[%emt 0:01:53]} ({Stronger than} 28... Qxa2 29. Qxe7 Rxh8 30. Qxd7+ Kb8 31. Qd6+ Ka8 32. Qf6 $17) 29. Qa5 $2 {[%emt 0:00:38]} (29. Be5 Bc6 30. Rxd8+ Kxd8 31. Qxe4 Bxe4 32. Kf2) 29... Nc6 {[%emt 0:00:52]} ({Worse is} 29... Rxh8 30. Qc3+ Kb8 31. Qxh8+ Kc7 32. Qd4 Qxd4+ 33. Rxd4 $17) (29... Qe3+ $142 30. Kh1 Rxh8) 30. Qc3 {[%emt 0:00:31]} Qxf4 {[%emt 0:02:05]} 31. Bf6 {[%emt 0:01:09]} Re8 {[%emt 0:00:28]} 32. Bd4 {[%emt 0:00:41]} Qg4 {[%emt 0:01:15]} 33. Rc1 {[%emt 0:00:28]} Be6 {[%emt 0:02:15][%cal Oe6d5] aiming for ...Bd5!} 34. Qc5 {[%emt 0:00:14] Dodges Bd5} Rd8 {[%emt 0:00:50] Prevents Qd6.} 35. Be3 {[%emt 0:00:26]} Bd5 {[%emt 0:01:24][%csl Gd5][%cal Rg4g2]} 36. Qc2 {[%emt 0:00:42]} Be4 {[%emt 0:00:10] Weighted Error Value: White=0.74/Black=0.39} 0-1